fUST/lending_fUST_20250126
["ID","MTS","AMOUNT","RATE_DAILY","PERIOD"]
[350446111,1737881440844,-500.0,0.00016438,2]
[350446112,1737881440853,-496.66896969,0.00016438,2]
[350446113,1737881440864,-500.0,0.00016438,2]
[350446115,1737881440878,-500.0,0.00016438,2]
[350446116,1737881440887,-500.0,0.00016438,2]
[350446117,1737881440897,-500.0,0.00016438,2]
[350446118,1737881440906,-373.42209819,0.00016438,2]
[350446119,1737881440916,-500.0,0.00016438,2]
[350446120,1737881440926,-500.0,0.00016438,2]
[350446121,1737881440935,-500.0,0.00016438,2]
[350446122,1737881440945,-500.0,0.00016438,2]
[350446123,1737881440954,-500.0,0.00016438,2]
[350446124,1737881440963,-500.0,0.00016438,2]
[350446125,1737881440972,-500.0,0.00016438,2]
[350446126,1737881440981,-500.0,0.00016438,2]
[350446127,1737881440990,-500.0,0.00016438,2]
[350446128,1737881440999,-500.0,0.00016438,2]
[350446129,1737881441008,-500.0,0.00016438,2]
[350446130,1737881441017,-500.0,0.00016438,2]
[350446131,1737881441026,-534.63429993,0.00016438,2]
[350446132,1737881441035,-500.0,0.00016438,2]
[350446133,1737881441044,-500.0,0.00016438,2]
[350446134,1737881441053,-514.74830745,0.00016438,2]
[350446135,1737881441062,-267.94792524,0.00016438,2]
[350446136,1737881441081,-232.05207476,0.00016438,2]
[350446137,1737881441091,-379.50392524,0.00016438,2]
[350446138,1737881441102,-120.49607476,0.00016438,2]
[350446139,1737881441113,-310.46387521,0.00016438,2]
[350446140,1737881441131,-500.0,0.00016438,2]
[350446141,1737881441140,-503.13666625,0.00016438,2]
[350446142,1737881441149,-504.85,0.00016438,2]
[350446143,1737881441159,-500.0,0.00016438,2]
[350446144,1737881441168,-500.0,0.00016438,2]
[350446145,1737881441177,-500.0,0.00016438,2]
[350446146,1737881441187,-500.0,0.00016438,2]
[350446147,1737881441196,-500.0,0.00016438,2]
[350446148,1737881441205,-500.0,0.00016438,2]
[350446149,1737881441215,-500.0,0.00016438,2]
[350446150,1737881441224,-216.17646554,0.00016438,2]
[350446151,1737881441235,-500.0,0.00016438,2]
[350446152,1737881441244,-500.0,0.00016438,2]
[350446153,1737881441253,-500.0,0.00016438,2]
[350446154,1737881441262,-500.0,0.00016438,2]
[350446155,1737881441272,-500.0,0.00016438,2]
[350446156,1737881441281,-500.0,0.00016438,2]
[350446157,1737881441290,-500.39524478,0.00016438,2]
[350446158,1737881441299,-500.0,0.00016438,2]
[350446159,1737881441309,-500.0,0.00016438,2]
[350446160,1737881441318,-344.48167346,0.00016438,2]
[350446161,1737881441330,-155.51832654,0.00016438,2]
[350446162,1737881441339,-151.0,0.00016438,2]
[350446163,1737881441348,-154.160052,0.00016438,2]
[350446164,1737881441357,-151.0,0.00016438,2]
[350446165,1737881441366,-151.0,0.00016438,2]
[350446166,1737881441375,-1215.49,0.00016438,2]
[350446167,1737881441384,-368.59258196,0.00016438,2]
[350446168,1737881441393,-500.0,0.00016438,2]
[350446169,1737881441403,-500.0,0.00016438,2]
[350446170,1737881441412,-500.0,0.00016438,2]
[350446171,1737881441421,-500.0,0.00016438,2]
[350446172,1737881441430,-500.0,0.00016438,2]
[350446173,1737881441439,-500.0,0.00016438,2]
[350446174,1737881441448,-505.42501226,0.00016438,2]
[350446175,1737881441457,-765.84,0.00016438,2]
[350446176,1737881441466,-500.0,0.00016438,2]
[350446177,1737881441475,-500.0,0.00016438,2]
[350446178,1737881441489,-500.0,0.00016438,2]
[350446179,1737881441502,-500.0,0.00016438,2]
[350446180,1737881441515,-500.0,0.00016438,2]
[350446181,1737881441528,-152.231364,0.00016438,2]
[350446182,1737881441539,-500.0,0.00016438,2]
[350446183,1737881441550,-500.0,0.00016438,2]
[350446184,1737881441563,-125.75554724,0.00016438,2]
[350446185,1737881441578,-374.24445276,0.00016438,2]
[350446186,1737881441590,-500.0,0.00016438,2]
[350446187,1737881441601,-154.30816667,0.00016438,2]
[350446188,1737881441616,-345.69183333,0.00016438,2]
[350446189,1737881441628,-500.0,0.00016438,2]
[350446190,1737881441640,-500.0,0.00016438,2]
[350446191,1737881441652,-154.30816667,0.00016438,2]
[350446209,1737881444161,-499.9967325,0.00016338,2]
[350446210,1737881444173,-10349.0,0.00016338,2]
[350446211,1737881444213,-13771.06834705,0.00016338,2]
[350446212,1737881444225,-345.69183333,0.00016438,2]
[350446213,1737881444237,-500.0,0.00016438,2]
[350446214,1737881444250,-500.0,0.00016438,2]
[350446215,1737881444262,-500.0,0.00016438,2]
[350446216,1737881444273,-500.0,0.00016438,2]
[350446217,1737881444283,-151.0,0.00016438,2]
[350446218,1737881444293,-158.564945,0.00016438,2]
[350446219,1737881444304,-500.0,0.00016438,2]
[350446220,1737881444315,-500.0,0.00016438,2]
[350446221,1737881444327,-500.0,0.00016438,2]
[350446222,1737881444337,-500.0,0.00016438,2]
[350446223,1737881444347,-3018.11,0.00016438,2]
[350446224,1737881444357,-451.99975296,0.00016438,2]
[350446225,1737881444367,-94.55764047,0.00016438,2]
[350446226,1737881444515,-409.56560176,0.00016438,2]
[350446227,1737881444526,-500.0,0.00016438,2]
[350446228,1737881444537,-500.0,0.00016438,2]
[350446229,1737881444548,-500.0,0.00016438,2]
[350446230,1737881444559,-1253.54,0.00016438,2]
[350446231,1737881444569,-588.69,0.00016438,2]
[350446232,1737881444580,-500.0,0.00016438,2]
[350446233,1737881444591,-527.51663256,0.00016438,2]
[350446234,1737881444602,-588.69,0.00016438,2]
[350446235,1737881444613,-500.0,0.00016438,2]
[350446236,1737881444624,-588.69,0.00016438,2]
[350446237,1737881444635,-588.69,0.00016438,2]
[350446238,1737881444646,-588.69,0.00016438,2]
[350446239,1737881444657,-500.0,0.00016438,2]
[350446240,1737881444667,-588.69,0.00016438,2]
[350446241,1737881444678,-588.69,0.00016438,2]
[350446242,1737881444689,-588.69,0.00016438,2]
[350446243,1737881444699,-588.69,0.00016438,2]
[350446244,1737881444710,-588.69,0.00016438,2]
[350446245,1737881444721,-588.69,0.00016438,2]
[350446246,1737881444732,-588.69,0.00016438,2]
[350446247,1737881444742,-4024.81,0.00016438,2]
[350446248,1737881444753,-500.0,0.00016438,2]
[350446249,1737881444763,-500.0,0.00016438,2]
[350446250,1737881444774,-500.0,0.00016438,2]
[350446251,1737881444785,-500.0,0.00016438,2]
[350446252,1737881444794,-503.81989321,0.00016438,2]
[350446253,1737881444803,-500.0,0.00016438,2]
[350446254,1737881444812,-500.0,0.00016438,2]
[350446255,1737881444822,-375.01966713,0.00016438,2]
[350446256,1737881444831,-500.0,0.00016438,2]
[350446257,1737881444840,-500.0,0.00016438,2]
[350446258,1737881444850,-500.0,0.00016438,2]
[350446259,1737881444860,-503.38226792,0.00016438,2]
[350446260,1737881444873,-500.0,0.00016438,2]
[350446261,1737881444882,-151.0,0.00016438,2]
[350446262,1737881444891,-151.0,0.00016438,2]
[350446263,1737881444900,-151.0,0.00016438,2]
[350446264,1737881444911,-500.0,0.00016438,2]
[350446265,1737881444920,-500.0,0.00016438,2]
[350446266,1737881444930,-500.0,0.00016438,2]
[350446267,1737881444940,-500.0,0.00016438,2]
[350446268,1737881444948,-500.0,0.00016438,2]
[350446269,1737881444958,-500.0,0.00016438,2]
[350446270,1737881445133,-500.0,0.00016438,2]
[350446271,1737881445151,-500.0,0.00016438,2]
[350446272,1737881445161,-2187.63993407,0.00016438,2]
[350446273,1737881445174,-1402.25006593,0.00016438,2]
[350446274,1737881445184,-751.67,0.00016438,2]
[350446275,1737881445193,-681.55,0.00016438,2]
[350446276,1737881445203,-500.0,0.00016438,2]
[350446277,1737881445213,-151.0,0.00016438,2]
[350446278,1737881445222,-266.019345,0.00016438,2]
[350446279,1737881445232,-500.0,0.00016438,2]
[350446280,1737881445241,-538.79532133,0.00016438,2]
[350446291,1737881446622,-158.99467867,0.00016438,2]
[350446292,1737881446632,-500.0,0.00016438,2]
[350446293,1737881446641,-500.0,0.00016438,2]
[350446294,1737881446650,-500.0,0.00016438,2]
[350446295,1737881446660,-183.376349,0.00016438,2]
[350446296,1737881446669,-183.376349,0.00016438,2]
[350446297,1737881446679,-183.376349,0.00016438,2]
[350446298,1737881446688,-183.376349,0.00016438,2]
[350446299,1737881446697,-183.376349,0.00016438,2]
[350446300,1737881446706,-183.376349,0.00016438,2]
[350446301,1737881446715,-500.0,0.00016438,2]
[350446302,1737881446725,-2180.4,0.00016438,2]
[350446303,1737881446734,-500.0,0.00016438,2]
[350446304,1737881446743,-500.0,0.00016438,2]
[350446305,1737881446752,-500.0,0.00016438,2]
[350446306,1737881446761,-500.0,0.00016438,2]
[350446307,1737881446770,-1626.272959,0.00016438,2]
[350446312,1737881480095,227.520035,0.00013973,2]
[350446313,1737881545951,185.421251,0.00013699,2]
[350446314,1737881623714,3000.0,0.00022,30]
[350446317,1737881938159,155.35,0.000219,31]
[350446318,1737881938214,155.35,0.000219,31]
[350446322,1737882329733,216.144033,0.00013973,2]
[350446323,1737882427240,162.0,0.00015029,2]
[350446324,1737882427750,162.0,0.00015029,2]
[350446325,1737882428319,162.0,0.00015029,2]
[350446326,1737882428938,162.0,0.00015029,2]
[350446327,1737882429579,162.0,0.00015029,2]
[350446328,1737882430125,162.0,0.00015029,2]
[350446329,1737882430713,162.0,0.00015029,2]
[350446330,1737882431316,162.0,0.00015029,2]
[350446331,1737882431888,162.99,0.00014884,2]
[350446332,1737882540442,155.37,0.000219,31]
[350446333,1737882540488,155.37,0.000219,31]
[350446334,1737882540546,155.37,0.000219,31]
[350446335,1737882540625,155.37,0.000219,31]
[350446336,1737882540664,155.37,0.000219,31]
[350446337,1737882540724,155.37,0.000219,31]
[350446338,1737882540779,155.37,0.000219,31]
[350446368,1737882631923,-210.835095,0.00015264,2]
[350446370,1737882631934,-210.835095,0.00015418,2]
[350446372,1737882631944,-271.168,0.0001587,2]
[350446374,1737882631954,-29.76118,0.00016217,2]
[350446376,1737882631967,-270.23882,0.00016217,2]
[350446378,1737882631977,-29.7076701,0.00016398,2]
[350446384,1737882632026,-517.9462302,0.00016398,2]
[350446448,1737882637757,-395.0,0.00016219,2]
[350446450,1737882637767,-938.99999851,0.00016398,2]
[350446454,1737882637815,-11755.33029059,0.00016398,2]
[350446455,1737882637824,-500.0,0.00016437,2]
[350446456,1737882637834,-500.0,0.00016437,2]
[350446457,1737882637844,-213.53240658,0.00016437,2]
[350446458,1737882637858,-500.0,0.00016437,2]
[350446459,1737882637870,-500.0,0.00016437,2]
[350446460,1737882637880,-500.0,0.00016437,2]
[350446461,1737882637889,-440.49689142,0.00016437,2]
[350446462,1737882637899,-500.0,0.00016437,2]
[350446463,1737882637909,-500.0,0.00016437,2]
[350446464,1737882637918,-500.0,0.00016437,2]
[350446465,1737882637928,-500.0,0.00016437,2]
[350446466,1737882637937,-500.0,0.00016437,2]
[350446467,1737882637947,-500.0,0.00016437,2]
[350446468,1737882637956,-500.0,0.00016437,2]
[350446469,1737882637966,-500.0,0.00016437,2]
[350446471,1737882637976,-500.0,0.00016437,2]
[350446473,1737882637985,-216.17884592,0.00016437,2]
[350446474,1737882637995,-500.0,0.00016437,2]
[350446475,1737882638004,-500.0,0.00016437,2]
[350446476,1737882638014,-500.0,0.00016437,2]
[350446477,1737882638023,-500.0,0.00016437,2]
[350446478,1737882638032,-217.3503781,0.00016437,2]
[350446479,1737882638042,-500.0,0.00016437,2]
[350446480,1737882638052,-500.0,0.00016437,2]
[350446481,1737882638062,-500.0,0.00016437,2]
[350446482,1737882638071,-500.0,0.00016437,2]
[350446483,1737882638080,-500.0,0.00016437,2]
[350446484,1737882638089,-500.0,0.00016437,2]
[350446485,1737882638100,-500.0,0.00016437,2]
[350446486,1737882638110,-500.0,0.00016437,2]
[350446487,1737882638119,-500.0,0.00016437,2]
[350446488,1737882638129,-500.0,0.00016437,2]
[350446489,1737882638139,-500.0,0.00016437,2]
[350446490,1737882638149,-500.0,0.00016437,2]
[350446491,1737882638159,-156.26924467,0.00016438,2]
[350446492,1737882638169,-500.0,0.00016438,2]
[350446493,1737882638178,-500.0,0.00016438,2]
[350446494,1737882638188,-500.0,0.00016438,2]
[350446495,1737882638197,-500.0,0.00016438,2]
[350446496,1737882638207,-500.0,0.00016438,2]
[350446497,1737882638217,-584.28263761,0.00016438,2]
[350446498,1737882638226,-500.0,0.00016438,2]
[350446499,1737882638236,-212.34850713,0.00016438,2]
[350446500,1737882638245,-500.0,0.00016438,2]
[350446501,1737882638256,-589.26,0.00016438,2]
[350446502,1737882638268,-453.35064303,0.00016438,2]
[350446503,1737882638278,-500.0,0.00016438,2]
[350446504,1737882638287,-500.0,0.00016438,2]
[350446505,1737882638297,-500.0,0.00016438,2]
[350446506,1737882638306,-410.25010966,0.00016438,2]
[350446507,1737882638316,-500.0,0.00016438,2]
[350446508,1737882638326,-500.0,0.00016438,2]
[350446509,1737882638335,-636.84,0.00016438,2]
[350446510,1737882638344,-500.0,0.00016438,2]
[350446511,1737882638354,-501.28909304,0.00016438,2]
[350446512,1737882638363,-500.0,0.00016438,2]
[350446513,1737882638373,-500.0,0.00016438,2]
[350446514,1737882638382,-242.91,0.00016438,2]
[350446515,1737882638392,-500.0,0.00016438,2]
[350446516,1737882638401,-500.0,0.00016438,2]
[350446517,1737882638411,-500.0,0.00016438,2]
[350446518,1737882638420,-500.0,0.00016438,2]
[350446519,1737882638430,-196.82414318,0.00016438,2]
[350446520,1737882638439,-500.0,0.00016438,2]
[350446521,1737882638448,-500.0,0.00016438,2]
[350446522,1737882638458,-500.0,0.00016438,2]
[350446523,1737882638468,-500.0,0.00016438,2]
[350446524,1737882638477,-500.0,0.00016438,2]
[350446525,1737882638487,-347.95,0.00016438,2]
[350446526,1737882638498,-500.0,0.00016438,2]
[350446527,1737882638508,-500.0,0.00016438,2]
[350446528,1737882638519,-500.0,0.00016438,2]
[350446529,1737882638531,-500.0,0.00016438,2]
[350446530,1737882638541,-500.0,0.00016438,2]
[350446531,1737882638550,-500.0,0.00016438,2]
[350446532,1737882638560,-500.0,0.00016438,2]
[350446533,1737882638570,-500.0,0.00016438,2]
[350446534,1737882638579,-500.0,0.00016438,2]
[350446535,1737882638589,-500.0,0.00016438,2]
[350446536,1737882638598,-500.0,0.00016438,2]
[350446537,1737882638608,-500.0,0.00016438,2]
[350446538,1737882638618,-473.09047537,0.00016438,2]
[350446539,1737882638627,-500.0,0.00016438,2]
[350446540,1737882638636,-500.0,0.00016438,2]
[350446541,1737882638646,-500.0,0.00016438,2]
[350446542,1737882638655,-500.0,0.00016438,2]
[350446543,1737882638665,-500.0,0.00016438,2]
[350446544,1737882638674,-500.0,0.00016438,2]
[350446545,1737882638683,-500.0,0.00016438,2]
[350446546,1737882638693,-242.63584905,0.00016438,2]
[350446547,1737882638703,-188.27380459,0.00016438,2]
[350446548,1737882638713,-500.0,0.00016438,2]
[350446549,1737882638722,-500.0,0.00016438,2]
[350446550,1737882638732,-500.0,0.00016438,2]
[350446551,1737882638742,-445.31860013,0.00016438,2]
[350446552,1737882638752,-500.0,0.00016438,2]
[350446553,1737882638762,-500.0,0.00016438,2]
[350446554,1737882638772,-500.0,0.00016438,2]
[350446555,1737882638782,-500.0,0.00016438,2]
[350446556,1737882638792,-500.0,0.00016438,2]
[350446557,1737882638801,-500.0,0.00016438,2]
[350446558,1737882638811,-533.34466312,0.00016438,2]
[350446559,1737882638820,-500.0,0.00016438,2]
[350446560,1737882638830,-497.11953272,0.00016438,2]
[350446561,1737882638839,-500.0,0.00016438,2]
[350446562,1737882638849,-500.0,0.00016438,2]
[350446563,1737882638861,-500.0,0.00016438,2]
[350446564,1737882638871,-500.0,0.00016438,2]
[350446565,1737882638880,-500.0,0.00016438,2]
[350446566,1737882638890,-612.41,0.00016438,2]
[350446567,1737882638899,-504.63112114,0.00016438,2]
[350446568,1737882638910,-500.0,0.00016438,2]
[350446569,1737882638919,-500.0,0.00016438,2]
[350446570,1737882638928,-500.0,0.00016438,2]
[350446571,1737882638938,-500.0,0.00016438,2]
[350446572,1737882638947,-501.67334266,0.00016438,2]
[350446573,1737882638956,-500.38108544,0.00016438,2]
[350446574,1737882638966,-500.0,0.00016438,2]
[350446575,1737882638976,-500.0,0.00016438,2]
[350446576,1737882638986,-500.0,0.00016438,2]
[350446577,1737882638995,-500.0,0.00016438,2]
[350446578,1737882639005,-500.0,0.00016438,2]
[350446579,1737882639014,-500.0,0.00016438,2]
[350446580,1737882639024,-507.07728348,0.00016438,2]
[350446581,1737882639035,-500.0,0.00016438,2]
[350446582,1737882639045,-1164.84,0.00016438,2]
[350446583,1737882639054,-500.0,0.00016438,2]
[350446584,1737882639063,-500.0,0.00016438,2]
[350446585,1737882639073,-500.0,0.00016438,2]
[350446586,1737882639082,-500.0,0.00016438,2]
[350446587,1737882639091,-733.93,0.00016438,2]
[350446588,1737882639100,-506.05,0.00016438,2]
[350446589,1737882639110,-500.0,0.00016438,2]
[350446590,1737882639119,-500.0,0.00016438,2]
[350446592,1737882639129,-500.0,0.00016438,2]
[350446593,1737882639138,-500.0,0.00016438,2]
[350446594,1737882639156,-500.0,0.00016438,2]
[350446595,1737882639167,-500.0,0.00016438,2]
[350446596,1737882639177,-500.0,0.00016438,2]
[350446597,1737882639187,-500.0,0.00016438,2]
[350446598,1737882639197,-500.0,0.00016438,2]
[350446599,1737882639207,-500.0,0.00016438,2]
[350446600,1737882639216,-500.0,0.00016438,2]
[350446604,1737882639398,-500.0,0.00016438,2]
[350446605,1737882639410,-500.0,0.00016438,2]
[350446607,1737882639419,-2892.35,0.00016438,2]
[350446608,1737882639429,-500.0,0.00016438,2]
[350446609,1737882639438,-500.0,0.00016438,2]
[350446610,1737882639448,-1317.95,0.00016438,2]
[350446611,1737882639458,-500.0,0.00016438,2]
[350446612,1737882639467,-500.0,0.00016438,2]
[350446613,1737882639476,-500.0,0.00016438,2]
[350446614,1737882639486,-500.0,0.00016438,2]
[350446615,1737882639496,-500.0,0.00016438,2]
[350446616,1737882639505,-500.0,0.00016438,2]
[350446617,1737882639515,-500.0,0.00016438,2]
[350446618,1737882639524,-500.0,0.00016438,2]
[350446619,1737882639534,-500.0,0.00016438,2]
[350446620,1737882639543,-500.0,0.00016438,2]
[350446621,1737882639552,-500.0,0.00016438,2]
[350446622,1737882639562,-500.0,0.00016438,2]
[350446623,1737882639572,-500.0,0.00016438,2]
[350446624,1737882639581,-500.0,0.00016438,2]
[350446625,1737882639590,-4182.72,0.00016438,2]
[350446627,1737882639599,-500.0,0.00016438,2]
[350446629,1737882639608,-500.0,0.00016438,2]
[350446630,1737882639617,-500.0,0.00016438,2]
[350446631,1737882639626,-500.0,0.00016438,2]
[350446632,1737882639636,-500.0,0.00016438,2]
[350446633,1737882639645,-500.0,0.00016438,2]
[350446634,1737882639655,-500.0,0.00016438,2]
[350446635,1737882639664,-500.0,0.00016438,2]
[350446636,1737882639675,-500.0,0.00016438,2]
[350446637,1737882639684,-500.0,0.00016438,2]
[350446638,1737882639694,-500.0,0.00016438,2]
[350446639,1737882639703,-500.0,0.00016438,2]
[350446640,1737882639713,-500.0,0.00016438,2]
[350446641,1737882639722,-500.0,0.00016438,2]
[350446642,1737882639731,-500.0,0.00016438,2]
[350446643,1737882639740,-3740.76,0.00016438,2]
[350446644,1737882639750,-500.0,0.00016438,2]
[350446645,1737882639761,-639.25377606,0.00016438,2]
[350446647,1737882639771,-500.0,0.00016438,2]
[350446648,1737882639781,-722.35,0.00016438,2]
[350446649,1737882639790,-500.0,0.00016438,2]
[350446650,1737882639799,-779.89,0.00016438,2]
[350446651,1737882639809,-500.0,0.00016438,2]
[350446652,1737882639818,-2280.95,0.00016438,2]
[350446653,1737882639827,-500.0,0.00016438,2]
[350446654,1737882639837,-500.0,0.00016438,2]
[350446655,1737882639847,-523.66185669,0.00016438,2]
[350446656,1737882639856,-500.0,0.00016438,2]
[350446657,1737882639866,-500.0,0.00016438,2]
[350446658,1737882639875,-500.0,0.00016438,2]
[350446659,1737882639884,-500.0,0.00016438,2]
[350446660,1737882639894,-328.76693536,0.00016438,2]
[350446661,1737882639910,-171.23306464,0.00016438,2]
[350446662,1737882639920,-371.94128081,0.00016438,2]
[350446663,1737882639932,-624.05871919,0.00016438,2]
[350446664,1737882639942,-606.55967459,0.00016438,2]
[350446665,1737882639991,-144.94032541,0.00016438,2]
[350446666,1737882640001,-175.01567395,0.00016438,2]
[350446672,1737882643055,-324.98432605,0.00016438,2]
[350446673,1737882643064,-21.54156195,0.00016438,2]
[350446717,1737882645887,-191.6432718,0.00016274,2]
[350446719,1737882645900,-478.45843805,0.00016438,2]
[350446722,1737882645913,-500.0,0.00016438,2]
[350446724,1737882645925,-500.0,0.00016438,2]
[350446727,1737882645938,-500.0,0.00016438,2]
[350446729,1737882645950,-9870.17,0.00016438,2]
[350446730,1737882645960,-500.0,0.00016438,2]
[350446731,1737882645970,-500.0,0.00016438,7]
[350446732,1737882645983,-896.07,0.00016438,2]
[350446733,1737882645994,-500.0,0.00016438,2]
[350446734,1737882646005,-330.0,0.00016438,2]
[350446735,1737882646017,-500.0,0.00016438,2]
[350446736,1737882646030,-370.93,0.00016438,2]
[350446737,1737882646042,-1425.23,0.00016438,2]
[350446738,1737882646054,-500.0,0.00016438,2]
[350446739,1737882646065,-500.0,0.00016438,2]
[350446740,1737882646076,-500.0,0.00016438,2]
[350446741,1737882646087,-500.0,0.00016438,2]
[350446743,1737882646099,-500.0,0.00016438,2]
[350446745,1737882646111,-500.0,0.00016438,2]
[350446747,1737882646123,-500.0,0.00016438,2]
[350446749,1737882646134,-500.0,0.00016438,2]
[350446751,1737882646144,-500.0,0.00016438,2]
[350446753,1737882646156,-226.91299862,0.00016438,2]
[350446756,1737882646167,-500.0,0.00016438,2]
[350446758,1737882646178,-500.0,0.00016438,2]
[350446760,1737882646188,-500.0,0.00016438,2]
[350446762,1737882646200,-522.02533844,0.00016438,2]
[350446765,1737882646212,-703.35,0.00016438,2]
[350446767,1737882646224,-549.61,0.00016438,2]
[350446769,1737882646235,-500.0,0.00016473,2]
[350446771,1737882646247,-1000.0,0.00016475,2]
[350446773,1737882646257,-500.0,0.00016498,2]
[350446775,1737882646268,-354.1278896,0.000165,2]
[350446777,1737882646279,-354.1278896,0.000165,2]
[350446779,1737882646291,-708.0847035,0.000165,2]
[350446781,1737882646302,-354.1278896,0.000165,2]
[350446784,1737882646314,-291.9772103,0.000165,2]
[350446786,1737882646325,-707.6755422,0.000165,2]
[350446788,1737882646337,-708.1442249,0.000165,2]
[350446791,1737882646349,-354.1278896,0.000165,2]
[350446793,1737882646365,-248.029849,0.00016544,2]
[350446795,1737882646377,-500.0,0.00016549,2]
[350446798,1737882646389,-500.0,0.00016574,2]
[350446800,1737882646401,-258.99228968,0.00016574,2]
[350446802,1737882646414,-500.0,0.00016574,2]
[350446804,1737882646426,-234.05316989,0.00016574,2]
[350446806,1737882646439,-181.29460277,0.00016574,2]
[350446808,1737882646451,-500.0,0.00016574,2]
[350446810,1737882646461,-500.0,0.00016574,2]
[350446813,1737882646471,-500.0,0.00016574,2]
[350446814,1737882646482,-500.0,0.00016574,2]
[350446816,1737882646493,-500.0,0.00016574,2]
[350446819,1737882646504,-500.0,0.00016574,2]
[350446821,1737882646515,-151.0,0.00016575,2]
[350446823,1737882646527,-259.68538367,0.00016575,2]
[350446825,1737882646540,-151.0,0.00016575,2]
[350446826,1737882646551,-500.0,0.00016575,2]
[350446828,1737882646563,-500.0,0.00016575,2]
[350446830,1737882646574,-151.0,0.00016575,2]
[350446832,1737882646584,-151.0,0.00016575,2]
[350446834,1737882646594,-500.0,0.00016575,2]
[350446836,1737882646604,-500.0,0.00016575,2]
[350446838,1737882646615,-215.284245,0.00016575,2]
[350446841,1737882646626,-151.0,0.00016575,2]
[350446843,1737882646639,-151.0,0.00016575,2]
[350446845,1737882646649,-597.23254707,0.00016575,2]
[350446847,1737882646660,-500.0,0.00016575,2]
[350446849,1737882646670,-200.90904,0.00016575,2]
[350446851,1737882646681,-395.86,0.00016575,2]
[350446853,1737882646691,-151.0,0.00016575,2]
[350446855,1737882646701,-500.0,0.00016575,2]
[350446856,1737882646711,-500.0,0.00016575,2]
[350446857,1737882646721,-151.0,0.00016575,2]
[350446858,1737882646733,-500.0,0.00016575,2]
[350446859,1737882646746,-500.0,0.00016575,2]
[350446860,1737882646757,-500.0,0.00016575,2]
[350446861,1737882646767,-500.0,0.00016575,2]
[350446862,1737882646778,-195.362065,0.00016575,2]
[350446863,1737882646788,-500.0,0.00016575,2]
[350446864,1737882646799,-500.0,0.00016575,2]
[350446865,1737882646810,-500.0,0.00016575,2]
[350446866,1737882646820,-151.0,0.00016575,2]
[350446867,1737882646830,-500.0,0.00016575,2]
[350446868,1737882646841,-151.425152,0.00016575,2]
[350446869,1737882646852,-151.0,0.00016575,2]
[350446870,1737882646863,-500.0,0.00016575,2]
[350446871,1737882646875,-151.0,0.00016575,2]
[350446872,1737882646885,-500.0,0.00016575,2]
[350446873,1737882646897,-500.0,0.00016575,2]
[350446874,1737882646907,-500.0,0.00016575,2]
[350446875,1737882646919,-500.0,0.00016575,2]
[350446876,1737882646929,-151.0,0.00016575,2]
[350446877,1737882646940,-151.0,0.00016575,2]
[350446878,1737882646952,-151.0,0.00016575,2]